Cogmind - Beta 16 @@@ ROGUE MODE // 2025.11.07 @ 20:59:40 Player: ChromeKnight Result: Destroyed by Autobeam Turret with Autobeam Performance ------------- Evolutions (0) 0 Regions Visited (2) 400 Robots Destroyed (9) 45 Value Destroyed (230) 230 Prototype IDs (0) 0 Alien Tech Used (0) 0 Bonus (0) 0 TOTAL SCORE: 675 Bonus ------- None Cogmind --------- Core Integrity 0/250 Matter 289/300 Energy 243/250 System Corruption 0% Temperature Cool (6) Movement Treading (160) Location -10/Subcaves Parts ------- > --- POWER (1) -------- Ion Engine > --- PROPULSION (2) --- Light Treads > --- UTILITY (2) ------ Improved Heat Sink Small Storage Unit > --- WEAPON (2) ------- Salvaging Laser Subdweller Machine Gun > --- INVENTORY (8) ---- Disposable Heat Sink Subdweller Optics Small Laser Subdweller Beam Cannon Peak State ------------ > --- POWER ------------ Ion Engine > --- PROPULSION ------- Light Treads Light Treads > --- UTILITY ---------- Improved Heat Sink Small Storage Unit > --- WEAPON ----------- Salvaging Laser Salvaging Laser > --- INVENTORY -------- Ion Engine Disposable Heat Sink Subdweller Optics Small Laser Subdweller Beam Cannon Subdweller Machine Gun [Rating: 10] Favorites ----------- Power Ion Engine Engine Ion Engine Propulsion Light Treads Treads Light Treads Utility Small Storage Unit Device Improved Heat Sink Storage Small Storage Unit Weapon Salvaging Laser Energy Gun Salvaging Laser Ballistic Gun Light Assault Rifle Build | -11 -10 -10 ------- Run | Yrd Mat Sub Slots Evolved . | . . . Power . | . . . Propulsion . | . . . Utility . | . . . Weapon . | . . . Parts Attached 11 | 6 . 5 Power 2 | 1 . 1 Engine 2 | 1 . 1 Core . | . . . Reactor . | . . . Propulsion 2 | 2 . . Treads 2 | 2 . . Leg . | . . . Wheel . | . . . Hover . | . . . Flight . | . . . Utility 2 | 1 . 1 Device 1 | . . 1 Storage 1 | 1 . . Processor . | . . . Hackware . | . . . Protection . | . . . Artifact . | . . . Weapon 5 | 2 . 3 Energy Gun 2 | . . 2 Energy Cannon . | . . . Ballistic Gun 3 | 2 . 1 Ballistic Cannon . | . . . Launcher . | . . . Special Weapon . | . . . Impact Weapon . | . . . Slashing Weapon . | . . . Piercing Weapon . | . . . Special Melee Weapon . | . . . Unidentified Prototypes . | . . . Parts Lost 3 | . . 3 Power 1 | . . 1 Propulsion 1 | . . 1 Utility . | . . . Weapon 1 | . . 1 Highest Loss Streak 2 | . . 2 To Critical Strikes . | . . . Average Backups 4 | . 1 4 Power . | . . . Propulsion . | . . . Utility 1 | . . 1 Weapon 2 | . 1 2 Tool/Special . | . . . Unused Backups 4 | . . 4 Power . | . . . Propulsion . | . . . Utility 2 | . . 2 Weapon 2 | . . 2 Tool/Special . | . . . Average Slot Usage (%) 96 | . 85 96 Engine 13 | . 14 13 Treads 28 | . 28 28 Device 11 | . . 11 Storage 14 | . 14 14 Energy Gun 22 | . . 23 Ballistic Gun 5 | . 28 4 Peak Build Rating 10 | 6 6 10 Average Rating 8 | 4 6 8 On Entrance 4 | . 6 6 Avg Prop Armor Cover (%) . | . . . Naked Turns . | . . . Heaviest Build 13 | 13 13 13 Greatest Support 40 | 40 40 40 Greatest Overweight (x) . | . . . Average Overweight (x) . | . . . Largest Inventory Capacity 8 | 8 8 8 Average Capacity 7 | 7 8 8 Most Carried 6 | 1 1 6 Average Carried 4 | . 1 4 Final Capacity 8 | 8 8 8 Final Carried 4 | 1 1 4 Class Distribution -------------------- 86% | Mutant 13% | Scavenger-Mutant Dominant Class ---------------- Mutant | -10/Materials Mutant | -10/Subcaves Resources | -11 -10 -10 ----------- Run | Yrd Mat Sub Matter Collected 328 | 220 . 108 Remotely . | . . . Salvage Created 256 | . . 256 Parts 19 | . . 19 Haulers Intercepted . | . . . Recyclers Shooed . | . . . Parts Field Recycled . | . . . Retrieved Matter . | . . . Parts Self-Destructed 7 | . . 7 Prevented . | . . . Parts Restored . | . . . Kills | -11 -10 -10 ------- Run | Yrd Mat Sub Combat Hostiles Destroyed 8 | . . 8 Guns 8 | . . 8 Classes Destroyed 3 | . . 3 Turret 1 | . . 1 Swarmer 4 | . . 4 Subdweller 4 | . . 4 Best Kill Streak 4 | . . 4 Combat Bots Only 4 | . . 4 Max Kills in Single Turn 1 | . . 1 Gunslinging . | . . . Exploded . | . . . Melee . | . . . Uniques/NPCs Destroyed . | . . . Combat | -11 -10 -10 -------- Run | Yrd Mat Sub Hostile Shots Fired 117 | . . 117 Missed 45 | . . 45 Hits 72 | . . 72 Projectile 72 | . . 72 AOE 2 | . . 2 Damage Taken 682 | . . 682 Core 250 | . . 250 Absorbed by Shields . | . . . Core Remaining (%) 100 | 100 . . Volleys Fired 36 | . . 36 Largest 2 | . . 2 Hottest 60 | . . 60 Shots Fired 71 | . . 71 Gun 71 | . . 71 Cannon . | . . . Launcher . | . . . Special . | . . . Kinetic 17 | . . 17 Thermal 54 | . . 54 Explosive . | . . . Electromagnetic . | . . . Robot Hit Streak 17 | . . 17 Robot Miss Streak 3 | . . 3 Penetration Max . | . . . Secondary Targets 1 | . . 1 Max Gunslinging Chain 1 | . . 1 Shots Hit Robots 49 | . . 49 Core Hits 21 | . . 21 Critical Kills . | . . . Critical Parts Destroyed . | . . . Critical Strikes . | . . . Melee Attacks . | . . . Impact . | . . . Slashing . | . . . Piercing . | . . . Sneak Attacks . | . . . Combat Hostiles . | . . . Follow-up Attacks . | . . . Damage Inflicted 476 | . . 476 Guns 476 | . . 476 Cannons . | . . . Explosions . | . . . Melee . | . . . Ramming . | . . . Kinetic 171 | . . 171 Thermal 305 | . . 305 Explosive . | . . . Electromagnetic . | . . . Impact . | . . . Slashing . | . . . Piercing . | . . . Highest Corruption . | . . . Average Corruption . | . . . Corruption Purged . | . . . Corruption Blocked . | . . . Overload Shots . | . . . Overflow Damage . | . . . Projectiles . | . . . Explosions . | . . . Melee . | . . . Knockbacks . | . . . Impact . | . . . Kinetic . | . . . Secondary . | . . . Self-Inflicted Damage . | . . . Shots . | . . . Rammed . | . . . Targets Rammed . | . . . Kicked . | . . . Crushed . | . . . Highest Temperature . | . . . Average Temperature . | . . . Received Heat Transfer 174 | . . 174 Siege Activations . | . . . Martial Activations . | . . . Shielding Activations . | . . . Robots Disrupted . | . . . Combat Hostiles . | . . . Robots Corrupted . | . . . Combat Hostiles . | . . . Parts Fried . | . . . Impact Corruptions . | . . . Robots Melted . | . . . Combat Hostiles . | . . . Parts Melted 3 | . . 3 Heat Transferred 850 | . . 850 Parts Sabotaged . | . . . Parts Stolen . | . . . Parts Stripped . | . . . Power Chain Reactions . | . . . Alert | -11 -10 -10 ------- Run | Yrd Mat Sub Maximum Alert Level . | . . . Low Security (%) 100 | 100 100 . Level 1 . | . . . Level 2 . | . . . Level 3 . | . . . Level 4 . | . . . Level 5 . | . . . High Security . | . . . Max Security . | . . . Peak Influence . | . . . Initial . | . . . Average . | . . . Influence Increases 190 | . . 190 Destroy 0b10 Robot/C 100 | . . 100 Lose Combat Pursuer 90 | . . 90 Influence Decreases 86 | . . 86 Time Decay 56 | . . 56 Lost Part 30 | . . 30 Squads Dispatched . | . . . Investigation . | . . . Extermination . | . . . Reinforcement . | . . . Assault . | . . . Garrison . | . . . Intercept . | . . . Searches Triggered . | . . . Construction Impeded . | . . . Haulers Reinforced . | . . . Active Scanning Responses . | . . . Cargo Convoy Interrupts . | . . . Stealth | -11 -10 -10 --------- Run | Yrd Mat Sub Distress Signals . | . . . Communications Jammed . | . . . Distress Signals . | . . . Times Spotted 11 | . . 11 Peak Tracking Total 6 | . . 6 Tactical Retreats 3 | . . 3 Traps | -11 -10 -10 ------- Run | Yrd Mat Sub Traps Triggered . | . . . Indirectly . | . . . Trap Hack Attempts . | . . . Triggered . | . . . Disarmed . | . . . Reprogrammed . | . . . Reused . | . . . Traps Extracted . | . . . Installed . | . . . Triggered . | . . . Machines | -11 -10 -10 ---------- Run | Yrd Mat Sub Machines Disabled 1 | . . 1 Max in Single Turn 1 | . . 1 Machines Repaired . | . . . Machines Dismantled . | . . . Machines Sabotaged . | . . . Overloaded Fab Kills . | . . . Hacking | -11 -10 -10 --------- Run | Yrd Mat Sub Machines Accessed . | . . . Terminals . | . . . Fabricators . | . . . Repair Stations . | . . . Recycling Units . | . . . Scanalyzers . | . . . Garrison Access . | . . . Total Hacks . | . . . Successful . | . . . Failed . | . . . Catastrophic . | . . . Database Lockouts . | . . . Manual . | . . . Terminals . | . . . Fabricators . | . . . Repair Stations . | . . . Recycling Units . | . . . Scanalyzers . | . . . Garrison Access . | . . . Terminal Hacks . | . . . Fabricator Hacks . | . . . Repair Station Hacks . | . . . Recycling Unit Hacks . | . . . Scanalyzer . | . . . Garrison Access Hacks . | . . . Unauthorized Hacks . | . . . Terminals . | . . . Fabricators . | . . . Repair Stations . | . . . Recycling Units . | . . . Scanalyzers . | . . . Garrison Access . | . . . Data Cores Recovered . | . . . Used . | . . . Hacking Detections . | . . . Full Trace Events . | . . . Feedback Events . | . . . Feedback Blocked . | . . . Robot Schematics Acquired . | . . . Robots Built . | . . . Authchips . | . . . Time . | . . . Total Robot Build Rating . | . . . Part Schematics Acquired . | . . . Parts Built . | . . . Authchips . | . . . Time . | . . . Total Part Build Rating . | . . . Part Studies Acquired . | . . . Parts Repaired . | . . . Time . | . . . Parts Recycled . | . . . Recycled Matter . | . . . Retrieved Matter . | . . . Retrieved Components . | . . . Parts Scanalyzed . | . . . Part Schematics Acquired . | . . . Parts Damaged . | . . . Bothacking | -11 -10 -10 ------------ Run | Yrd Mat Sub Used RIF Installer . | . . . Robots Hacked . | . . . Non-combat . | . . . Combat . | . . . Robot Hacks Applied . | . . . Relay Couplers Released . | . . . Fabnet Peak Effective % . | . . . Robots Rewired . | . . . Allies Hacked . | . . . Hacks Repelled . | . . . Allies | -11 -10 -10 -------- Run | Yrd Mat Sub Total Allies . | . . . Largest Group . | . . . Highest-Rated Group . | . . . Highest-Rated Ally . | . . . Total Orders . | . . . Ally Attacks . | . . . Total Damage . | . . . Kills . | . . . Allies Corrupted . | . . . Allies Melted . | . . . Intel | -11 -10 -10 ------- Run | Yrd Mat Sub Active Infowar (turns) . | . . . Robot Analysis Total . | . . . Derelict Logs Recovered . | . . . Drone Launches . | . . . Drone Recoveries . | . . . Exploration | -11 -10 -10 ------------- Run | Yrd Mat Sub Turns Passed 825 | 68 38 719 Spaces Moved 409 | 39 23 347 Core 3 | 3 . . Treads 406 | 36 23 347 Legs . | . . . Wheels . | . . . Hover . | . . . Flight . | . . . Fastest Speed 50 | 50 160 160 Average Speed 159 | 151 160 160 Slowest Speed 160 | 160 160 160 Overloaded Moves . | . . . Propulsion Burnouts . | . . . Robots Hopped . | . . . Potential Cave-ins . | . . . Cave-ins Triggered . | . . . Exploration Rate (%) 11 | 3 7 23 Regions Visited 2 Branch Regions 1 Pre-discovered Areas . | . . . Known Exits Taken . | . . . Unknown Exits Taken 2 | 1 1 . Scrap Searched . | . . . Spaces Dug . | . . . Terrain Destroyed . | . . . Melee . | . . . Projectile . | . . . AOE . | . . . Terrain Rammed . | . . . Walls Destroyed . | . . . Machines Disabled . | . . . Actions | -11 -10 -10 --------- Run | Yrd Mat Sub Total 533 | 45 24 464 Wait 71 | . 2 69 Move 407 | 38 22 347 Hop . | . . . Pick Up 6 | 1 . 5 Fast Attach 9 | 6 . 3 Attach 2 | . . 2 Detach . | . . . Swap . | . . . Drop 2 | . . 2 Fire 36 | . . 36 Melee . | . . . Ram . | . . . Kick . | . . . Crush . | . . . Escape Stasis . | . . . Rewire . | . . . Trap . | . . . Miscellaneous . | . . . Route ------- -11/Scrapyard -10/Materials (discovered 2 exits: [*Min] / [*Sub]) -10/Subcaves (discovered 1 exit: [*Rec]) History --------- Turn | Location | Event 9 | -11/Scrapyard | Discovered new exit (range 15) 69 | -11/Scrapyard | Entered Materials 69 | -10/Materials | Discovered new exit (range 7) 70 | -10/Materials | Met a group of wandering Federalists 94 | -10/Materials | Discovered new exit (range 9) 107 | -10/Materials | Entered Subcaves 107 | -10/Subcaves | Accompanied by 2 allies 108 | -10/Subcaves | Continued accompanying wandering Federalists (3) 202 | -10/Subcaves | Lost 3 allies 314 | -10/Subcaves | Build established: Mutant 362 | -10/Subcaves | Shifting Twisted Machinery released Sub. Machine Gun 570 | -10/Subcaves | Core integrity fell below 50% 695 | -10/Subcaves | Core integrity fell below 20% 811 | -10/Subcaves | Discovered new exit (range 10) 826 | -10/Subcaves | Destroyed by Autobeam Turret with Autobeam Last Messages --------------- repair. 00699_ S-10 Pest destroyed. 00699_ Switching to secondary target: S-10 Pest. 00701_ S-10 Pest destroyed. 00703_ Flight Unit fries itself beyond repair. 00709_ Lgt. Ion Engine fries itself beyond repair. 00711_ Flight Unit fries itself beyond repair. 00712_ Lgt. Ion Engine fries itself beyond repair. 00756_ Subatomizers dissect the Sub. Laser. 00756_ Acquired 10 matter. 00769_ Subatomizers dissect the Sub. Laser. 00807_ Autobeam Turret destroyed. 00811_ EXIT=FOUND 00816_ Salvaging Laser destroyed. 00817_ Subatomizers dissect the Sub. Laser. 00820_ Machine disabled. 00824_ Lgt. Treads destroyed. Map ----- +----------------------------------------------------+ | #####?##### ###"""" # #*#"""#??????????? | | ####### ## #?#"##" ######"""#??????????? | | ### #??###### ##??###"""#??????????? | | ## #### #?# ""#??#" "#??????????? | | ## #?# "#??"" | ???????????? | | # ## ## #?# "#??#"" ##????????????? | | # ####### ## ### ##?## #??????????????? | | * ##????# ## %% #??#" "???????????????? | | ! #????# ## % ##?# #???????????????? | | ##??# ## % ### #####???????????? | | ##?# ###### ## " ##??????????? | | ###% #?## #????## ###!=* "" ##?????????? | | " " ##??#### ##?????## [%& " #?????????? | | #???????##???????# &!& ##?????????? | | #?????????????#### ##??? #?????? | | #?????????????# ##??? ##????? | | #?????????????# ##??# #????? | | #????????????## ###??] #?????? | | " ####???#????## #### #??????? | | " ###?# ### #??????? | | "# # #?# =%= #??????? | | ##### #??# ] #?????? | | #????# #####???# % #? | | ?????## ##???????# ## ## ## #? | | ####??###????????# #?# #######? ] ?? | | ##?????????????##??# @##??????? # ###?? | | #??????????????#" ????????## ## ##???? | | #####??????????????# #???????? #??#????? | | ???????????????????# % #????????? ##???????? | | ########???????????#" t "#?????????? ????????? | | ## ##??????????#" " " "#?????????? ???????? | | #??????????#""" """"#??????????? ??????? | | #??????????#####<#####???????????? ?????? | | #??????????????##????????????????????????? | | ## ###????????????????????????????????????????? | | ##?##??????????????????????????????????????????? | | ##??????????????????????????????????????????????? | | ##???????????????????????????????????????????????? | | ?????????????????????????????????????????????????? | | #????????????????????????????????????????????????? | | ##???????????????????????????????????????????????? | | #???????????????????????????????????????????????? | | ##???????????????????????????????????????????????? | | #????????????????????????????????????????????????? | | ?????????????????????????????????????????????????? | | ?????????????????????????????????????????????????? | | ?????????????????????????????????????????????????? | | ?????????????????????????????????????????????????? | | ?????????????????????????????????????????????????? | | ?????????????????????????????????????????????????? | +----------------------------------------------------+ Best States ------------- Heat Dissipation 39 Energy Generation 10 Energy Capacity 250 Matter Stores 300 Matter Capacity 300 Sight Range 16 Terrain Scan Density 10 Evasion (%) 40 Recoil Reduction 2 Item Schematics ----------------- None Robot Schematics ------------------ None Fabricated ------------ Nothing Repaired ---------- Nothing Studied --------- None Alien Tech Used ----------------- None Achievements -------------- None Challenges ------------ None Game ------ Seed ImprovedRingThruster Manual? 0 Play Time 00:05:34 Cumulative 516.3 hours Start 2025.11.07 @ 20:56:36 End 2025.11.07 @ 20:59:40 Sessions 1 Manual Loads 0 Difficulty Rogue Special Mode None Game No. 854 Rogue 699 Adventurer 148 Explorer 7 Win Type - Total 24 Types 19/1/3/1/0/0/0/0/0/0 Lore% 76 Gallery% 79 Achievement% 61 Wizard Run 0 Options --------- Layout 1 ASCII 0 Keyboard 0 Movement Numpad Keybinds 0 Fullscreen 2 Font 24/Smallcaps Map View 50x40 Zoom Use 0% Tactical HUD 1 Map Filters NONE Filters NONE Steam 1 RUN: 2fa8d64f-b9af-4afc-bff9-6e4b0b8595dd